[Event "Titled Tuesday Blitz April 11 Early 2023"]
[White "Lobanov, Sergei"]
[Black "Sadhwani, Raunak"]
[WhiteFideId "24183750"]
[BlackFideId "35093487"]
[WhiteElo "2489"]
[BlackElo "2631"]
[Result "0-1"]
[Round "07"]
[TimeControl "180+2"]
[Date "2023.04.11"]
[WhiteClock "0:00:11"]
[BlackClock "0:00:25"]

1. d4 {[%clk 0:03:00]}  g6 {[%clk 0:02:58]} 2. e4 {[%clk 0:03:00]}  Bg7 {[%clk 0:02:59]} 3. Nc3 {[%clk 0:03:00]}  d6 {[%clk 0:02:59]} 4. f4 {[%clk 0:03:01]}  Nf6 {[%clk 0:02:55]} 5. Nf3 {[%clk 0:03:01]}  c5 {[%clk 0:02:55]} 6. dxc5 {[%clk 0:03:01]}  Qa5 {[%clk 0:02:55]} 7. Qd4 {[%clk 0:02:29]}  dxc5 {[%clk 0:02:25]} 8. Bb5+ {[%clk 0:02:08]}  Qxb5 {[%clk 0:02:15]} 9. Qxf6 {[%clk 0:02:09]}  Bxf6 {[%clk 0:01:57]} 10. Nxb5 {[%clk 0:02:09]}  Na6 {[%clk 0:01:58]} 11. c3 {[%clk 0:02:03]}  Bd7 {[%clk 0:01:51]} 12. a4 {[%clk 0:02:03]}  Bg7 {[%clk 0:01:50]} 13. Be3 {[%clk 0:02:02]}  O-O {[%clk 0:01:48]} 14. Kf2 {[%clk 0:02:01]}  Bc6 {[%clk 0:01:41]} 15. e5 {[%clk 0:01:29]}  b6 {[%clk 0:01:40]} 16. Rhe1 {[%clk 0:01:25]}  f6 {[%clk 0:01:35]} 17. exf6 {[%clk 0:01:18]}  Bxf6 {[%clk 0:01:36]} 18. Kg3 {[%clk 0:01:16]}  Bxb5 {[%clk 0:01:31]} 19. axb5 {[%clk 0:01:16]}  Nc7 {[%clk 0:01:32]} 20. c4 {[%clk 0:01:05]}  Bxb2 {[%clk 0:01:33]} 21. Ra2 {[%clk 0:01:06]}  Bf6 {[%clk 0:01:28]} 22. Ne5 {[%clk 0:01:04]}  Bxe5 {[%clk 0:01:27]} 23. fxe5 {[%clk 0:01:04]}  a6 {[%clk 0:01:22]} 24. Rd2 {[%clk 0:00:35]}  axb5 {[%clk 0:00:46]} 25. Rd7 {[%clk 0:00:35]}  Rac8 {[%clk 0:00:47]} 26. cxb5 {[%clk 0:00:30]}  Kf7 {[%clk 0:00:28]} 27. Bg5 {[%clk 0:00:26]}  Rfe8 {[%clk 0:00:28]} 28. e6+ {[%clk 0:00:18]}  Nxe6 {[%clk 0:00:28]} 29. Rf1+ {[%clk 0:00:18]}  Kg8 {[%clk 0:00:25]} 30. Re1 {[%clk 0:00:11]}  Nxg5 {[%clk 0:00:25]} 0-1


[Site "https://www.chess.com"]

[Event "Titled Tuesday Blitz April 11 Early 2023"]
[White "Asis Gargatagli, Hipolito"]
[Black "Kramnik, Vladimir"]
[WhiteFideId "2260735"]
[BlackFideId "4101588"]
[WhiteElo "2557"]
[BlackElo "2712"]
[Result "0-1"]
[Round "07"]
[TimeControl "180+2"]
[Date "2023.04.11"]
[WhiteClock "0:01:30"]
[BlackClock "0:00:13"]

1. e4 {[%clk 0:03:00]}  c5 {[%clk 0:02:59]} 2. Nf3 {[%clk 0:03:00]}  d6 {[%clk 0:02:59]} 3. Bc4 {[%clk 0:03:00]}  Nf6 {[%clk 0:02:57]} 4. d3 {[%clk 0:03:00]}  e6 {[%clk 0:02:57]} 5. O-O {[%clk 0:02:59]}  Nc6 {[%clk 0:02:57]} 6. a4 {[%clk 0:02:59]}  Be7 {[%clk 0:02:56]} 7. Bb3 {[%clk 0:02:59]}  d5 {[%clk 0:02:52]} 8. e5 {[%clk 0:02:59]}  Nd7 {[%clk 0:02:49]} 9. Re1 {[%clk 0:02:59]}  O-O {[%clk 0:02:40]} 10. c3 {[%clk 0:02:59]}  Rb8 {[%clk 0:02:27]} 11. d4 {[%clk 0:02:59]}  b5 {[%clk 0:02:26]} 12. axb5 {[%clk 0:02:58]}  Rxb5 {[%clk 0:02:26]} 13. Bc2 {[%clk 0:02:57]}  c4 {[%clk 0:02:06]} 14. Nbd2 {[%clk 0:02:53]}  Ra5 {[%clk 0:02:00]} 15. Rb1 {[%clk 0:02:48]}  Nb6 {[%clk 0:01:53]} 16. Nf1 {[%clk 0:02:46]}  Bd7 {[%clk 0:01:53]} 17. h4 {[%clk 0:02:46]}  Bxh4 {[%clk 0:01:48]} 18. Ne3 {[%clk 0:02:42]}  f5 {[%clk 0:01:32]} 19. exf6 {[%clk 0:02:42]}  Bxf6 {[%clk 0:01:31]} 20. Ng4 {[%clk 0:02:42]}  Ne7 {[%clk 0:01:14]} 21. Nxf6+ {[%clk 0:02:40]}  gxf6 {[%clk 0:01:14]} 22. Bh6 {[%clk 0:02:36]}  Rf7 {[%clk 0:01:11]} 23. Nh4 {[%clk 0:02:36]}  Kh8 {[%clk 0:01:02]} 24. Re3 {[%clk 0:02:34]}  Qe8 {[%clk 0:00:34]} 25. Qh5 {[%clk 0:02:09]}  Rf8 {[%clk 0:00:32]} 26. Qf3 {[%clk 0:02:09]}  Rf7 {[%clk 0:00:28]} 27. Rbe1 {[%clk 0:02:04]}  Ra2 {[%clk 0:00:27]} 28. Rxe6 {[%clk 0:01:50]}  Bxe6 {[%clk 0:00:26]} 29. Rxe6 {[%clk 0:01:50]}  Rxb2 {[%clk 0:00:25]} 30. Ng6+ {[%clk 0:01:50]}  hxg6 {[%clk 0:00:22]} 31. Bxg6 {[%clk 0:01:50]}  Qg8 {[%clk 0:00:18]} 32. Rxf6 {[%clk 0:01:35]}  Qxg6 {[%clk 0:00:14]} 33. Rxf7 {[%clk 0:01:29]}  Rb1+ {[%clk 0:00:13]} 34. Kh2 {[%clk 0:01:29]}  Qxh6+ {[%clk 0:00:13]} 35. Kg3 {[%clk 0:01:30]}  Qg5+ {[%clk 0:00:13]} 0-1


[Site "https://www.chess.com"]

[Event "Titled Tuesday Blitz April 11 Early 2023"]
[White "Makarian, Rudik"]
[Black "Molina, Roberto Junio Brito"]
[WhiteFideId "44105681"]
[BlackFideId "2109450"]
[WhiteElo "2430"]
[BlackElo "2376"]
[Result "1-0"]
[Round "07"]
[TimeControl "180+2"]
[Date "2023.04.11"]
[WhiteClock "0:01:45"]
[BlackClock "0:01:02"]

1. d4 {[%clk 0:03:00]}  d5 {[%clk 0:02:58]} 2. c4 {[%clk 0:03:01]}  c6 {[%clk 0:02:57]} 3. Nf3 {[%clk 0:03:02]}  Nf6 {[%clk 0:02:56]} 4. Nc3 {[%clk 0:03:02]}  dxc4 {[%clk 0:02:56]} 5. g3 {[%clk 0:03:01]}  b5 {[%clk 0:02:56]} 6. Bg2 {[%clk 0:03:00]}  Bb7 {[%clk 0:02:56]} 7. Ne5 {[%clk 0:03:00]}  a6 {[%clk 0:02:55]} 8. O-O {[%clk 0:02:59]}  e6 {[%clk 0:02:54]} 9. b3 {[%clk 0:03:00]}  b4 {[%clk 0:02:53]} 10. bxc4 {[%clk 0:03:00]}  bxc3 {[%clk 0:02:52]} 11. Rb1 {[%clk 0:03:00]}  Bc8 {[%clk 0:02:44]} 12. c5 {[%clk 0:02:42]}  Nd5 {[%clk 0:02:42]} 13. e4 {[%clk 0:02:35]}  Nc7 {[%clk 0:02:37]} 14. Bf4 {[%clk 0:02:23]}  Be7 {[%clk 0:02:32]} 15. Rxb8 {[%clk 0:02:20]}  Rxb8 {[%clk 0:02:29]} 16. Nxc6 {[%clk 0:02:21]}  Rb2 {[%clk 0:01:55]} 17. Nxd8 {[%clk 0:02:17]}  Bxd8 {[%clk 0:01:56]} 18. Qd3 {[%clk 0:02:03]}  Rxa2 {[%clk 0:01:37]} 19. Qxc3 {[%clk 0:02:01]}  O-O {[%clk 0:01:33]} 20. d5 {[%clk 0:01:50]}  exd5 {[%clk 0:01:28]} 21. exd5 {[%clk 0:01:51]}  Nb5 {[%clk 0:01:26]} 22. Qc4 {[%clk 0:01:50]}  Ra3 {[%clk 0:01:18]} 23. d6 {[%clk 0:01:49]}  Be6 {[%clk 0:01:16]} 24. Bd5 {[%clk 0:01:48]}  Rc3 {[%clk 0:01:08]} 25. Bxe6 {[%clk 0:01:49]}  Rxc4 {[%clk 0:01:08]} 26. Bxc4 {[%clk 0:01:50]}  Nd4 {[%clk 0:01:06]} 27. Rd1 {[%clk 0:01:46]}  Nc6 {[%clk 0:01:02]} 28. Bd5 {[%clk 0:01:45]}  Nb4 {[%clk 0:01:02]} 29. c6 {[%clk 0:01:45]} 1-0


[Site "https://www.chess.com"]

[Event "Titled Tuesday Blitz April 11 Early 2023"]
[White "Drygalov, Andrey"]
[Black "Cherniaiev, Tykhon"]
[WhiteFideId "24171735"]
[BlackFideId "14182360"]
[WhiteElo "2466"]
[BlackElo "2450"]
[Result "1/2-1/2"]
[Round "07"]
[TimeControl "180+2"]
[Date "2023.04.11"]
[WhiteClock "0:00:13"]
[BlackClock "0:00:10"]

1. d4 {[%clk 0:03:00]}  Nf6 {[%clk 0:02:59]} 2. c4 {[%clk 0:03:01]}  e6 {[%clk 0:02:59]} 3. Nc3 {[%clk 0:03:01]}  d5 {[%clk 0:02:59]} 4. Nf3 {[%clk 0:03:01]}  Be7 {[%clk 0:02:59]} 5. g3 {[%clk 0:03:00]}  O-O {[%clk 0:02:59]} 6. Bg2 {[%clk 0:03:01]}  c5 {[%clk 0:02:55]} 7. cxd5 {[%clk 0:02:58]}  Nxd5 {[%clk 0:02:51]} 8. Nxd5 {[%clk 0:02:58]}  Qxd5 {[%clk 0:02:42]} 9. O-O {[%clk 0:02:55]}  Nc6 {[%clk 0:02:41]} 10. dxc5 {[%clk 0:02:45]}  Bxc5 {[%clk 0:02:28]} 11. Qxd5 {[%clk 0:02:43]}  exd5 {[%clk 0:02:29]} 12. Rd1 {[%clk 0:02:43]}  d4 {[%clk 0:02:21]} 13. Bf4 {[%clk 0:02:40]}  Re8 {[%clk 0:02:17]} 14. Rac1 {[%clk 0:02:39]}  Bb6 {[%clk 0:02:16]} 15. Kf1 {[%clk 0:02:39]}  Be6 {[%clk 0:02:14]} 16. b3 {[%clk 0:02:36]}  h6 {[%clk 0:02:07]} 17. Nd2 {[%clk 0:02:30]}  Rad8 {[%clk 0:01:48]} 18. Nc4 {[%clk 0:02:26]}  Bxc4 {[%clk 0:01:24]} 19. Rxc4 {[%clk 0:02:25]}  g5 {[%clk 0:01:24]} 20. Bxc6 {[%clk 0:02:13]}  bxc6 {[%clk 0:01:21]} 21. Bc1 {[%clk 0:02:14]}  Re6 {[%clk 0:01:15]} 22. Ba3 {[%clk 0:02:14]}  Rd5 {[%clk 0:01:10]} 23. Rd2 {[%clk 0:02:01]}  Rf5 {[%clk 0:00:52]} 24. f3 {[%clk 0:01:48]}  Re3 {[%clk 0:00:35]} 25. g4 {[%clk 0:01:09]}  Rf6 {[%clk 0:00:25]} 26. Bb2 {[%clk 0:01:04]}  c5 {[%clk 0:00:23]} 27. Kf2 {[%clk 0:00:59]}  Rfe6 {[%clk 0:00:20]} 28. Rcc2 {[%clk 0:00:56]}  c4 {[%clk 0:00:11]} 29. Bxd4 {[%clk 0:00:52]}  Bxd4 {[%clk 0:00:10]} 30. Rxd4 {[%clk 0:00:50]}  cxb3 {[%clk 0:00:11]} 31. axb3 {[%clk 0:00:51]}  Rxb3 {[%clk 0:00:12]} 32. Rd7 {[%clk 0:00:43]}  a5 {[%clk 0:00:10]} 33. Rc8+ {[%clk 0:00:40]}  Kg7 {[%clk 0:00:11]} 34. Rcc7 {[%clk 0:00:23]}  Rb2 {[%clk 0:00:11]} 35. Rxf7+ {[%clk 0:00:22]}  Kg8 {[%clk 0:00:11]} 36. Rfd7 {[%clk 0:00:22]}  Rexe2+ {[%clk 0:00:10]} 37. Kf1 {[%clk 0:00:22]}  Re8 {[%clk 0:00:06]} 38. Rg7+ {[%clk 0:00:22]}  Kh8 {[%clk 0:00:06]} 39. Rh7+ {[%clk 0:00:22]}  Kg8 {[%clk 0:00:06]} 40. Rcg7+ {[%clk 0:00:23]}  Kf8 {[%clk 0:00:06]} 41. Ra7 {[%clk 0:00:24]}  Kg8 {[%clk 0:00:05]} 42. Rxh6 {[%clk 0:00:13]}  Rf8 {[%clk 0:00:04]} 43. Rg6+ {[%clk 0:00:10]}  Kh8 {[%clk 0:00:04]} 44. Rh6+ {[%clk 0:00:11]}  Kg8 {[%clk 0:00:05]} 45. Rg6+ {[%clk 0:00:12]}  Kh8 {[%clk 0:00:05]} 46. Rxg5 {[%clk 0:00:09]}  Rxf3+ {[%clk 0:00:05]} 47. Kg1 {[%clk 0:00:10]}  Rc3 {[%clk 0:00:05]} 48. Rh5+ {[%clk 0:00:10]}  Kg8 {[%clk 0:00:05]} 49. Rg5+ {[%clk 0:00:10]}  Kh8 {[%clk 0:00:05]} 50. Rf5 {[%clk 0:00:03]}  Rc1+ {[%clk 0:00:05]} 51. Rf1 {[%clk 0:00:04]}  Rxf1+ {[%clk 0:00:05]} 52. Kxf1 {[%clk 0:00:05]}  Rxh2 {[%clk 0:00:06]} 53. Rxa5 {[%clk 0:00:06]}  Kg7 {[%clk 0:00:06]} 54. Kg1 {[%clk 0:00:06]}  Rb2 {[%clk 0:00:07]} 55. Rf5 {[%clk 0:00:07]}  Kg6 {[%clk 0:00:07]} 56. Re5 {[%clk 0:00:07]}  Rb4 {[%clk 0:00:07]} 57. Kf2 {[%clk 0:00:07]}  Rxg4 {[%clk 0:00:07]} 58. Kf3 {[%clk 0:00:08]}  Rg5 {[%clk 0:00:07]} 59. Re6+ {[%clk 0:00:08]}  Kf7 {[%clk 0:00:08]} 60. Re1 {[%clk 0:00:08]}  Rf5+ {[%clk 0:00:08]} 61. Kg4 {[%clk 0:00:09]}  Ra5 {[%clk 0:00:07]} 62. Re4 {[%clk 0:00:09]}  Kf6 {[%clk 0:00:08]} 63. Rf4+ {[%clk 0:00:09]}  Kg6 {[%clk 0:00:08]} 64. Rc4 {[%clk 0:00:09]}  Rg5+ {[%clk 0:00:08]} 65. Kf4 {[%clk 0:00:09]}  Rf5+ {[%clk 0:00:09]} 66. Ke4 {[%clk 0:00:10]}  Rf1 {[%clk 0:00:09]} 67. Rc6+ {[%clk 0:00:10]}  Kg5 {[%clk 0:00:09]} 68. Rc5+ {[%clk 0:00:11]}  Kg4 {[%clk 0:00:09]} 69. Kd5 {[%clk 0:00:12]}  Rf5+ {[%clk 0:00:09]} 70. Kc6 {[%clk 0:00:13]}  Rxc5+ {[%clk 0:00:10]} 71. Kxc5 {[%clk 0:00:13]} 1/2-1/2


[Site "https://www.chess.com"]

[Event "Titled Tuesday Blitz April 11 Early 2023"]
[White "Ioannidis, Evgenios"]
[Black "Ibarra Jerez, Jose Carlos"]
[WhiteFideId "4229274"]
[BlackFideId "2226332"]
[WhiteElo "2386"]
[BlackElo "2638"]
[Result "0-1"]
[Round "07"]
[TimeControl "180+2"]
[Date "2023.04.11"]
[WhiteClock "0:00:39"]
[BlackClock "0:01:15"]

1. d4 {[%clk 0:02:51]}  Nf6 {[%clk 0:02:59]} 2. c4 {[%clk 0:02:52]}  d6 {[%clk 0:02:59]} 3. Nf3 {[%clk 0:02:51]}  g6 {[%clk 0:03:00]} 4. g3 {[%clk 0:02:51]}  Bg7 {[%clk 0:02:59]} 5. Bg2 {[%clk 0:02:52]}  O-O {[%clk 0:03:00]} 6. Nc3 {[%clk 0:02:53]}  Bf5 {[%clk 0:03:00]} 7. Nh4 {[%clk 0:02:51]}  Bc8 {[%clk 0:03:00]} 8. Nf3 {[%clk 0:02:51]}  Nc6 {[%clk 0:03:00]} 9. O-O {[%clk 0:02:50]}  Bf5 {[%clk 0:03:00]} 10. d5 {[%clk 0:02:47]}  Na5 {[%clk 0:03:00]} 11. Nd2 {[%clk 0:02:47]}  c6 {[%clk 0:03:00]} 12. e4 {[%clk 0:02:18]}  Bg4 {[%clk 0:03:00]} 13. f3 {[%clk 0:02:18]}  Bd7 {[%clk 0:03:00]} 14. b4 {[%clk 0:01:50]}  Qb6+ {[%clk 0:03:00]} 15. Kh1 {[%clk 0:01:49]}  Qxb4 {[%clk 0:02:59]} 16. Qc2 {[%clk 0:01:47]}  Nxd5 {[%clk 0:02:51]} 17. Nxd5 {[%clk 0:01:47]}  cxd5 {[%clk 0:02:51]} 18. Rb1 {[%clk 0:01:47]}  Qc5 {[%clk 0:02:46]} 19. exd5 {[%clk 0:01:45]}  Bf5 {[%clk 0:02:46]} 20. Ne4 {[%clk 0:01:45]}  Qc7 {[%clk 0:02:34]} 21. c5 {[%clk 0:01:42]}  Qxc5 {[%clk 0:02:21]} 22. Qxc5 {[%clk 0:01:36]}  dxc5 {[%clk 0:02:20]} 23. Bg5 {[%clk 0:01:33]}  Rfe8 {[%clk 0:02:15]} 24. Rbd1 {[%clk 0:01:28]}  Bxe4 {[%clk 0:02:12]} 25. fxe4 {[%clk 0:01:29]}  Be5 {[%clk 0:02:07]} 26. Bh3 {[%clk 0:01:24]}  Rad8 {[%clk 0:02:07]} 27. Bh6 {[%clk 0:01:24]}  Bg7 {[%clk 0:01:44]} 28. Be3 {[%clk 0:01:19]}  b6 {[%clk 0:01:43]} 29. Bg5 {[%clk 0:00:56]}  h6 {[%clk 0:01:36]} 30. Bf4 {[%clk 0:00:52]}  Nc4 {[%clk 0:01:25]} 31. Bc7 {[%clk 0:00:52]}  Ne3 {[%clk 0:01:23]} 32. Bxd8 {[%clk 0:00:43]}  Rxd8 {[%clk 0:01:23]} 33. Rfe1 {[%clk 0:00:41]}  Nxd1 {[%clk 0:01:23]} 34. Rxd1 {[%clk 0:00:42]}  c4 {[%clk 0:01:20]} 35. Kg2 {[%clk 0:00:42]}  Bb2 {[%clk 0:01:15]} 36. Rd4 {[%clk 0:00:39]} 0-1


[Site "https://www.chess.com"]

[Event "Titled Tuesday Blitz April 11 Early 2023"]
[White "Rosen, Eric"]
[Black "Bharath Subramaniyam H"]
[WhiteFideId "2032562"]
[BlackFideId "46634827"]
[WhiteElo "2331"]
[BlackElo "2395"]
[Result "1-0"]
[Round "07"]
[TimeControl "180+2"]
[Date "2023.04.11"]
[WhiteClock "0:01:16"]
[BlackClock "0:01:09"]

1. d4 {[%clk 0:03:00]}  Nf6 {[%clk 0:02:58]} 2. Bf4 {[%clk 0:03:01]}  b6 {[%clk 0:02:58]} 3. Nf3 {[%clk 0:03:00]}  Bb7 {[%clk 0:02:58]} 4. c4 {[%clk 0:03:00]}  g6 {[%clk 0:02:58]} 5. Nc3 {[%clk 0:02:59]}  Bg7 {[%clk 0:02:59]} 6. Qc2 {[%clk 0:03:00]}  O-O {[%clk 0:02:55]} 7. e4 {[%clk 0:03:00]}  d6 {[%clk 0:02:55]} 8. Rd1 {[%clk 0:02:59]}  Nbd7 {[%clk 0:02:54]} 9. Be2 {[%clk 0:03:00]}  c5 {[%clk 0:02:46]} 10. d5 {[%clk 0:02:56]}  Ng4 {[%clk 0:02:45]} 11. h3 {[%clk 0:02:53]}  Nge5 {[%clk 0:02:45]} 12. Nd2 {[%clk 0:02:54]}  e6 {[%clk 0:02:39]} 13. O-O {[%clk 0:02:53]}  exd5 {[%clk 0:02:36]} 14. cxd5 {[%clk 0:02:52]}  a6 {[%clk 0:02:27]} 15. a4 {[%clk 0:02:53]}  Rc8 {[%clk 0:02:23]} 16. b3 {[%clk 0:02:46]}  Qe7 {[%clk 0:02:08]} 17. Bg3 {[%clk 0:02:46]}  g5 {[%clk 0:02:01]} 18. Rb1 {[%clk 0:02:24]}  Rcd8 {[%clk 0:01:52]} 19. Nc4 {[%clk 0:02:19]}  Nxc4 {[%clk 0:01:48]} 20. bxc4 {[%clk 0:02:19]}  f5 {[%clk 0:01:38]} 21. exf5 {[%clk 0:02:17]}  Bxc3 {[%clk 0:01:38]} 22. Qxc3 {[%clk 0:02:04]}  Qxe2 {[%clk 0:01:38]} 23. Bxd6 {[%clk 0:01:58]}  Rf7 {[%clk 0:01:20]} 24. Rfe1 {[%clk 0:01:54]}  Qh5 {[%clk 0:01:19]} 25. g4 {[%clk 0:01:52]}  Qh6 {[%clk 0:01:19]} 26. Re6 {[%clk 0:01:48]}  Qg7 {[%clk 0:01:18]} 27. Qe3 {[%clk 0:01:20]}  h5 {[%clk 0:01:09]} 28. Rg6 {[%clk 0:01:16]} 1-0


[Site "https://www.chess.com"]

[Event "Titled Tuesday Blitz April 11 Early 2023"]
[White "Andreikin, Dmitry"]
[Black "Gabrielian, Artur"]
[WhiteFideId "4158814"]
[BlackFideId "4131002"]
[WhiteElo "2736"]
[BlackElo "2432"]
[Result "1-0"]
[Round "07"]
[TimeControl "180+2"]
[Date "2023.04.11"]
[WhiteClock "0:00:33"]
[BlackClock "0:00:01"]

1. d4 {[%clk 0:03:00]}  Nf6 {[%clk 0:02:58]} 2. c4 {[%clk 0:03:00]}  e6 {[%clk 0:02:58]} 3. Nf3 {[%clk 0:02:57]}  d5 {[%clk 0:02:58]} 4. h3 {[%clk 0:02:56]}  Be7 {[%clk 0:02:52]} 5. cxd5 {[%clk 0:02:44]}  exd5 {[%clk 0:02:52]} 6. Nc3 {[%clk 0:02:44]}  O-O {[%clk 0:02:51]} 7. Bf4 {[%clk 0:02:45]}  Bf5 {[%clk 0:02:36]} 8. g4 {[%clk 0:02:39]}  Bg6 {[%clk 0:02:29]} 9. Ne5 {[%clk 0:02:32]}  c5 {[%clk 0:02:11]} 10. e3 {[%clk 0:02:00]}  cxd4 {[%clk 0:02:10]} 11. exd4 {[%clk 0:02:01]}  Qb6 {[%clk 0:01:57]} 12. Bg2 {[%clk 0:01:16]}  Qxb2 {[%clk 0:01:54]} 13. Nxd5 {[%clk 0:01:16]}  Nxd5 {[%clk 0:01:49]} 14. Bxd5 {[%clk 0:01:17]}  Rd8 {[%clk 0:01:05]} 15. Nxg6 {[%clk 0:01:08]}  hxg6 {[%clk 0:00:54]} 16. Rb1 {[%clk 0:00:59]}  Qc3+ {[%clk 0:00:53]} 17. Bd2 {[%clk 0:00:58]}  Qxd4 {[%clk 0:00:18]} 18. Bxb7 {[%clk 0:00:58]}  Bc5 {[%clk 0:00:10]} 19. O-O {[%clk 0:00:51]}  Qe5 {[%clk 0:00:08]} 20. Bf4 {[%clk 0:00:41]}  Qe7 {[%clk 0:00:05]} 21. Qf3 {[%clk 0:00:36]}  g5 {[%clk 0:00:01]} 22. Bg3 {[%clk 0:00:33]} 1-0


[Site "https://www.chess.com"]

[Event "Titled Tuesday Blitz April 11 Early 2023"]
[White "Vachier-Lagrave, Maxime"]
[Black "Shuvalov, Evgenij"]
[WhiteFideId "623539"]
[BlackFideId "4187237"]
[WhiteElo "2740"]
[BlackElo "2080"]
[Result "1-0"]
[Round "07"]
[TimeControl "180+2"]
[Date "2023.04.11"]
[WhiteClock "0:02:10"]
[BlackClock "0:00:16"]

1. e4 {[%clk 0:03:00]}  e6 {[%clk 0:02:57]} 2. Nc3 {[%clk 0:03:00]}  d5 {[%clk 0:02:58]} 3. d4 {[%clk 0:03:01]}  Bb4 {[%clk 0:02:57]} 4. Ne2 {[%clk 0:02:59]}  Nc6 {[%clk 0:02:57]} 5. e5 {[%clk 0:02:57]}  Nge7 {[%clk 0:02:55]} 6. a3 {[%clk 0:02:57]}  Ba5 {[%clk 0:02:55]} 7. b4 {[%clk 0:02:57]}  Bb6 {[%clk 0:02:55]} 8. Na4 {[%clk 0:02:57]}  f6 {[%clk 0:02:52]} 9. exf6 {[%clk 0:02:57]}  gxf6 {[%clk 0:02:52]} 10. Nxb6 {[%clk 0:02:57]}  axb6 {[%clk 0:02:52]} 11. Nf4 {[%clk 0:02:58]}  O-O {[%clk 0:02:48]} 12. b5 {[%clk 0:02:55]}  Nxd4 {[%clk 0:02:39]} 13. Qxd4 {[%clk 0:02:54]}  e5 {[%clk 0:02:40]} 14. Qb4 {[%clk 0:02:54]}  exf4 {[%clk 0:02:38]} 15. Bd3 {[%clk 0:02:50]}  Bf5 {[%clk 0:02:30]} 16. Bxf4 {[%clk 0:02:49]}  Bxd3 {[%clk 0:02:29]} 17. cxd3 {[%clk 0:02:50]}  Ng6 {[%clk 0:02:28]} 18. O-O {[%clk 0:02:50]}  c5 {[%clk 0:02:24]} 19. bxc6 {[%clk 0:02:49]}  bxc6 {[%clk 0:02:24]} 20. Bh6 {[%clk 0:02:49]}  Rf7 {[%clk 0:02:22]} 21. Rfe1 {[%clk 0:02:49]}  c5 {[%clk 0:02:16]} 22. Qb5 {[%clk 0:02:48]}  Ne5 {[%clk 0:02:05]} 23. Re3 {[%clk 0:02:47]}  Kh8 {[%clk 0:01:49]} 24. Bf4 {[%clk 0:02:46]}  Ng6 {[%clk 0:01:47]} 25. Bg3 {[%clk 0:02:42]}  f5 {[%clk 0:01:41]} 26. Be5+ {[%clk 0:02:41]}  Nxe5 {[%clk 0:01:35]} 27. Rxe5 {[%clk 0:02:41]}  Qf6 {[%clk 0:01:31]} 28. Rae1 {[%clk 0:02:39]}  Rxa3 {[%clk 0:01:12]} 29. h3 {[%clk 0:02:38]}  Kg7 {[%clk 0:01:05]} 30. Re6 {[%clk 0:02:33]}  Qd4 {[%clk 0:00:53]} 31. Qxb6 {[%clk 0:02:33]}  Ra1 {[%clk 0:00:47]} 32. Qd8 {[%clk 0:02:29]}  Rxe1+ {[%clk 0:00:43]} 33. Rxe1 {[%clk 0:02:30]}  h6 {[%clk 0:00:36]} 34. Re8 {[%clk 0:02:24]}  Kh7 {[%clk 0:00:21]} 35. Qc8 {[%clk 0:02:11]}  c4 {[%clk 0:00:17]} 36. dxc4 {[%clk 0:02:11]}  dxc4 {[%clk 0:00:18]} 37. Qe6 {[%clk 0:02:07]}  Qf6 {[%clk 0:00:14]} 38. Qxc4 {[%clk 0:02:06]}  Rg7 {[%clk 0:00:13]} 39. Qd5 {[%clk 0:02:04]}  Qg6 {[%clk 0:00:12]} 40. Rf8 {[%clk 0:02:03]}  f4 {[%clk 0:00:11]} 41. Rxf4 {[%clk 0:02:02]}  Qb1+ {[%clk 0:00:11]} 42. Kh2 {[%clk 0:02:02]}  Qg6 {[%clk 0:00:12]} 43. Qe4 {[%clk 0:02:02]}  Qxe4 {[%clk 0:00:12]} 44. Rxe4 {[%clk 0:02:02]}  Rf7 {[%clk 0:00:13]} 45. f3 {[%clk 0:02:03]}  Kg7 {[%clk 0:00:13]} 46. Kg3 {[%clk 0:02:03]}  Rc7 {[%clk 0:00:13]} 47. h4 {[%clk 0:02:02]}  Rc2 {[%clk 0:00:13]} 48. h5 {[%clk 0:02:02]}  Kf6 {[%clk 0:00:13]} 49. Rg4 {[%clk 0:02:02]}  Kf7 {[%clk 0:00:13]} 50. Rg6 {[%clk 0:02:03]}  Rc5 {[%clk 0:00:13]} 51. Rxh6 {[%clk 0:02:03]}  Kg7 {[%clk 0:00:13]} 52. Rg6+ {[%clk 0:02:03]}  Kh7 {[%clk 0:00:14]} 53. Kg4 {[%clk 0:02:03]}  Rc2 {[%clk 0:00:13]} 54. g3 {[%clk 0:02:03]}  Rc4+ {[%clk 0:00:14]} 55. f4 {[%clk 0:02:04]}  Rc1 {[%clk 0:00:13]} 56. Rg5 {[%clk 0:02:05]}  Rg1 {[%clk 0:00:13]} 57. Re5 {[%clk 0:02:05]}  Kh6 {[%clk 0:00:13]} 58. Re6+ {[%clk 0:02:05]}  Kh7 {[%clk 0:00:13]} 59. Kh4 {[%clk 0:02:05]}  Rh1+ {[%clk 0:00:14]} 60. Kg5 {[%clk 0:02:06]}  Rg1 {[%clk 0:00:15]} 61. g4 {[%clk 0:02:06]}  Kg8 {[%clk 0:00:15]} 62. f5 {[%clk 0:02:07]}  Kf7 {[%clk 0:00:16]} 63. h6 {[%clk 0:02:07]}  Rh1 {[%clk 0:00:16]} 64. Rg6 {[%clk 0:02:07]}  Rh2 {[%clk 0:00:16]} 65. Rg7+ {[%clk 0:02:08]}  Kf8 {[%clk 0:00:16]} 66. Kg6 {[%clk 0:02:08]}  Rh4 {[%clk 0:00:15]} 67. g5 {[%clk 0:02:09]}  Rh1 {[%clk 0:00:16]} 68. f6 {[%clk 0:02:09]}  Rh2 {[%clk 0:00:16]} 69. h7 {[%clk 0:02:10]}  Rh1 {[%clk 0:00:16]} 70. Rg8# {[%clk 0:02:10]} 1-0


[Site "https://www.chess.com"]

[Event "Titled Tuesday Blitz April 11 Early 2023"]
[White "Svane, Rasmus"]
[Black "Zarubitski, Viachaslau"]
[WhiteFideId "4657101"]
[BlackFideId "13509373"]
[WhiteElo "2597"]
[BlackElo "2284"]
[Result "1-0"]
[Round "07"]
[TimeControl "180+2"]
[Date "2023.04.11"]
[WhiteClock "0:00:42"]
[BlackClock "0:00:06"]

1. Nf3 {[%clk 0:03:00]}  Nf6 {[%clk 0:02:59]} 2. g3 {[%clk 0:03:01]}  d5 {[%clk 0:02:59]} 3. Bg2 {[%clk 0:03:01]}  c6 {[%clk 0:02:59]} 4. O-O {[%clk 0:03:02]}  Bf5 {[%clk 0:02:59]} 5. c4 {[%clk 0:03:02]}  e6 {[%clk 0:02:58]} 6. Qb3 {[%clk 0:03:02]}  Qb6 {[%clk 0:02:58]} 7. d3 {[%clk 0:03:02]}  Nbd7 {[%clk 0:02:51]} 8. cxd5 {[%clk 0:03:02]}  cxd5 {[%clk 0:02:46]} 9. Qxb6 {[%clk 0:03:01]}  Nxb6 {[%clk 0:02:45]} 10. Nc3 {[%clk 0:03:02]}  Be7 {[%clk 0:02:43]} 11. Nh4 {[%clk 0:03:02]}  Bg4 {[%clk 0:02:41]} 12. h3 {[%clk 0:03:02]}  Bh5 {[%clk 0:02:41]} 13. g4 {[%clk 0:03:01]}  Bg6 {[%clk 0:02:40]} 14. f4 {[%clk 0:02:57]}  Nfd7 {[%clk 0:02:27]} 15. Nxg6 {[%clk 0:02:20]}  hxg6 {[%clk 0:02:28]} 16. Be3 {[%clk 0:02:20]}  Bc5 {[%clk 0:02:18]} 17. Bxc5 {[%clk 0:02:18]}  Nxc5 {[%clk 0:02:19]} 18. Rac1 {[%clk 0:02:19]}  Na6 {[%clk 0:02:09]} 19. e4 {[%clk 0:02:11]}  dxe4 {[%clk 0:01:48]} 20. dxe4 {[%clk 0:02:02]}  O-O-O {[%clk 0:01:24]} 21. e5 {[%clk 0:02:03]}  Kb8 {[%clk 0:01:23]} 22. Ne4 {[%clk 0:02:03]}  Rd7 {[%clk 0:01:14]} 23. f5 {[%clk 0:01:44]}  gxf5 {[%clk 0:01:09]} 24. gxf5 {[%clk 0:01:45]}  Nc8 {[%clk 0:00:40]} 25. Rc3 {[%clk 0:01:27]}  Re8 {[%clk 0:00:30]} 26. f6 {[%clk 0:01:17]}  g6 {[%clk 0:00:27]} 27. a3 {[%clk 0:01:15]}  Red8 {[%clk 0:00:25]} 28. Rfc1 {[%clk 0:01:05]}  Nc7 {[%clk 0:00:20]} 29. Kh2 {[%clk 0:00:47]}  Nd5 {[%clk 0:00:17]} 30. Rb3 {[%clk 0:00:45]}  Nf4 {[%clk 0:00:12]} 31. Nc5 {[%clk 0:00:41]}  Rd2 {[%clk 0:00:09]} 32. Rxb7+ {[%clk 0:00:41]}  Ka8 {[%clk 0:00:09]} 33. Rb8+ {[%clk 0:00:42]}  Kxb8 {[%clk 0:00:06]} 34. Na6# {[%clk 0:00:42]} 1-0


[Site "https://www.chess.com"]